fUST/lending_fUST_20250817
["ID","MTS","AMOUNT","RATE_DAILY","PERIOD"]
[379727081,1755388248876,-815.27,0.00020849,2]
[379727082,1755388248886,-1173.07,0.00020849,2]
[379727083,1755388248895,-706.92,0.00020849,2]
[379727084,1755388248904,-480.0,0.00020849,2]
[379727085,1755388248914,-151.0,0.00020849,2]
[379727086,1755388248924,-151.0,0.00020849,2]
[379727087,1755388248933,-159.729765,0.00020849,2]
[379727088,1755388248942,-159.729765,0.00020849,2]
[379727089,1755388248951,-480.0,0.00020849,2]
[379727090,1755388248961,-486.65,0.00020849,2]
[379727091,1755388248970,-480.0,0.00020849,2]
[379727092,1755388248979,-520.12,0.00020849,2]
[379727093,1755388248988,-480.0,0.00020849,2]
[379727094,1755388248998,-480.0,0.00020849,2]
[379727095,1755388249007,-729.19,0.00020849,2]
[379727096,1755388249017,-818.61,0.00020849,2]
[379727097,1755388249026,-480.0,0.00020849,2]
[379727098,1755388249035,-567.7,0.00020849,2]
[379727099,1755388249045,-4346.9,0.00020849,2]
[379727100,1755388249054,-546.09,0.00020849,2]
[379727101,1755388249064,-480.0,0.00020849,2]
[379727102,1755388249073,-480.0,0.00020849,2]
[379727103,1755388249083,-649.68,0.00020849,2]
[379727104,1755388249092,-480.0,0.00020849,2]
[379727105,1755388249101,-480.0,0.00020849,2]
[379727106,1755388249111,-480.0,0.00020849,2]
[379727107,1755388249120,-764.22,0.00020849,2]
[379727108,1755388249129,-631.41,0.00020849,2]
[379727109,1755388249139,-151.0,0.000209,4]
[379727110,1755388249148,-151.0,0.000209,4]
[379727111,1755388249158,-900.3,0.00020905,2]
[379727112,1755388249168,-168.98892549,0.00020932,2]
[379727113,1755388249178,-167.23947228,0.00020932,2]
[379727114,1755388249187,-863.1,0.00020948,2]
[379727115,1755388249197,-823.88,0.00020948,2]
[379727116,1755388249206,-480.0,0.00020948,2]
[379727117,1755388249216,-7413.48,0.00020948,2]
[379727118,1755388249226,-776.03,0.00020948,2]
[379727119,1755388249235,-1324.64,0.00020948,2]
[379727120,1755388249245,-525.28,0.00020948,2]
[379727121,1755388249255,-480.0,0.00020949,2]
[379727122,1755388249265,-733.34,0.00020949,2]
[379727123,1755388249275,-480.0,0.00020949,2]
[379727124,1755388249298,-480.0,0.00020949,2]
[379727125,1755388249314,-485.22,0.00020949,2]
[379727126,1755388249334,-480.0,0.00020949,2]
[379727127,1755388249363,-1094.65,0.00020949,2]
[379727128,1755388249374,-964.5,0.00020949,2]
[379727129,1755388249383,-480.0,0.00020949,2]
[379727130,1755388249392,-770.3,0.00020949,2]
[379727131,1755388249402,-480.0,0.00020949,2]
[379727132,1755388249411,-480.0,0.00020949,2]
[379727133,1755388249421,-480.0,0.00020949,2]
[379727135,1755388249430,-2306.01,0.00020949,2]
[379727137,1755388249439,-480.0,0.00020949,2]
[379727138,1755388249448,-546.58,0.00020949,2]
[379727139,1755388249458,-480.0,0.00020949,2]
[379727140,1755388249467,-535.47,0.00020949,2]
[379727141,1755388249476,-734.24,0.00020949,2]
[379727143,1755388249486,-532.38,0.00020949,2]
[379727145,1755388249495,-1185.5,0.00020949,2]
[379727147,1755388249504,-480.0,0.00020949,2]
[379727148,1755388249513,-151.0,0.00020949,2]
[379727149,1755388249524,-505.71,0.00020949,2]
[379727150,1755388249533,-738.63,0.00020949,2]
[379727152,1755388249543,-480.0,0.00020949,2]
[379727153,1755388249552,-151.0,0.00020949,2]
[379727154,1755388249563,-576.69,0.00020949,2]
[379727155,1755388249574,-690.0,0.00020949,3]
[379727156,1755388249584,-882.73,0.00020949,2]
[379727157,1755388249594,-480.0,0.00020949,2]
[379727158,1755388249604,-531.14,0.00020949,2]
[379727159,1755388249615,-480.0,0.00020949,2]
[379727160,1755388249624,-480.0,0.00020949,2]
[379727161,1755388249634,-582.53,0.00020949,2]
[379727162,1755388249643,-480.0,0.00020949,2]
[379727163,1755388249653,-480.0,0.00020949,2]
[379727164,1755388249662,-673.8,0.00020949,2]
[379727165,1755388249674,-241.743492,0.00020949,2]
[379727166,1755388249683,-480.0,0.00020949,2]
[379727167,1755388249692,-480.0,0.00020949,2]
[379727168,1755388249701,-480.0,0.00020949,2]
[379727169,1755388249710,-480.0,0.00020949,2]
[379727170,1755388249719,-577.78,0.00020949,2]
[379727171,1755388249729,-480.0,0.00020949,2]
[379727172,1755388249738,-151.0,0.00020949,2]
[379727173,1755388249748,-544.83,0.00020949,2]
[379727174,1755388249757,-151.0,0.0002095,2]
[379727175,1755388249767,-360.494397,0.0002095,2]
[379727176,1755388249776,-360.494397,0.0002095,2]
[379727177,1755388249785,-151.0,0.0002095,2]
[379727178,1755388249795,-216.804971,0.0002095,2]
[379727179,1755388249804,-723.896909,0.0002095,2]
[379727180,1755388249814,-723.896909,0.0002095,2]
[379727181,1755388249823,-480.0,0.0002095,2]
[379727182,1755388249832,-480.0,0.0002095,2]
[379727183,1755388249841,-480.0,0.0002095,2]
[379727184,1755388249851,-151.0,0.0002095,2]
[379727185,1755388249860,-480.0,0.0002095,2]
[379727186,1755388249869,-480.0,0.0002095,2]
[379727187,1755388249879,-151.0,0.0002095,2]
[379727188,1755388249888,-7339.11,0.0002095,2]
[379727189,1755388249897,-151.0,0.0002095,2]
[379727190,1755388249906,-480.0,0.0002095,2]
[379727191,1755388249916,-480.0,0.0002095,2]
[379727192,1755388249925,-480.0,0.0002095,2]
[379727193,1755388249935,-1406.99,0.0002095,2]
[379727194,1755388249944,-480.0,0.0002095,2]
[379727195,1755388249953,-906.94,0.0002095,2]
[379727196,1755388249963,-151.0,0.0002095,2]
[379727197,1755388249973,-151.0,0.0002095,2]
[379727198,1755388249983,-480.0,0.0002095,2]
[379727199,1755388249992,-159.729765,0.0002095,2]
[379727200,1755388250001,-480.0,0.0002095,2]
[379727201,1755388250011,-159.729765,0.0002095,2]
[379727202,1755388250021,-5604.82,0.0002095,2]
[379727203,1755388250030,-480.0,0.0002095,2]
[379727204,1755388250040,-609.92244077,0.0002095,2]
[379727205,1755388250050,-847.62,0.0002095,2]
[379727206,1755388250059,-480.0,0.0002095,2]
[379727207,1755388250070,-853.71,0.0002095,2]
[379727208,1755388250079,-693.06,0.0002095,2]
[379727209,1755388250089,-480.0,0.0002095,2]
[379727210,1755388250099,-151.0,0.00020951,2]
[379727211,1755388250108,-2091.04,0.00020951,2]
[379727212,1755388250117,-480.0,0.00020951,2]
[379727213,1755388250127,-1929.11,0.00020951,2]
[379727214,1755388250137,-480.0,0.00020951,2]
[379727215,1755388250149,-500.0,0.00020973,2]
[379727216,1755388250159,-500.0,0.00020973,2]
[379727217,1755388250169,-500.0,0.00020973,2]
[379727218,1755388250179,-500.0,0.00020973,2]
[379727219,1755388250190,-500.0,0.00020973,2]
[379727220,1755388250200,-500.0,0.00020973,2]
[379727221,1755388250210,-500.0,0.00020973,2]
[379727222,1755388250220,-500.0,0.00020973,2]
[379727223,1755388250230,-309.50605196,0.00020973,2]
[379727224,1755388250241,-500.0,0.00020973,2]
[379727225,1755388250250,-500.0,0.00020973,2]
[379727226,1755388250262,-500.0,0.00020973,2]
[379727227,1755388250272,-500.58545385,0.00020973,2]
[379727228,1755388250282,-500.0,0.00020973,2]
[379727229,1755388250292,-500.0,0.00020973,2]
[379727230,1755388250302,-500.0,0.00020973,2]
[379727231,1755388250311,-500.0,0.00020973,2]
[379727232,1755388250321,-503.95145406,0.00020973,2]
[379727233,1755388250343,-160.18977761,0.00020973,2]
[379727234,1755388250355,-500.0,0.00020973,2]
[379727235,1755388250365,-500.0,0.00020973,2]
[379727236,1755388250376,-500.0,0.00020973,2]
[379727237,1755388250386,-500.0,0.00020973,2]
[379727238,1755388250396,-500.0,0.00020973,2]
[379727239,1755388250405,-500.0,0.00020973,2]
[379727240,1755388250416,-500.0,0.00020973,2]
[379727241,1755388250428,-500.0,0.00020973,2]
[379727242,1755388250444,-217.00503673,0.00020973,2]
[379727243,1755388250454,-360.494397,0.00020973,2]
[379727244,1755388250464,-360.494397,0.00020973,2]
[379727245,1755388250474,-151.0,0.00020973,2]
[379727246,1755388250483,-151.0,0.00020973,2]
[379727247,1755388250493,-151.0,0.00020973,2]
[379727248,1755388250503,-151.0,0.00020973,2]
[379727249,1755388250512,-151.0,0.00020973,2]
[379727250,1755388250522,-972.961,0.00020975,2]
[379727251,1755388250531,-2152.0,0.00020975,2]
[379727252,1755388250541,-768.296,0.00020975,2]
[379727253,1755388250552,-233.829005,0.00020988,2]
[379727254,1755388250561,-160.93899496,0.00020989,2]
[379727255,1755388250572,-100000.0,0.0002099,2]
[379727256,1755388250584,-151.0,0.0002099,2]
[379727257,1755388250594,-151.0,0.0002099,2]
[379727258,1755388250603,-360.494397,0.0002099,2]
[379727259,1755388250613,-360.494397,0.0002099,2]
[379727260,1755388250623,-151.0,0.0002099,2]
[379727261,1755388250633,-723.896909,0.0002099,2]
[379727262,1755388250642,-723.896909,0.0002099,2]
[379727263,1755388250652,-340.243582,0.0002099,2]
[379727264,1755388250662,-340.243582,0.0002099,2]
[379727265,1755388250672,-151.0,0.0002099,2]
[379727266,1755388250681,-151.0,0.0002099,2]
[379727267,1755388250691,-151.0,0.0002099,2]
[379727268,1755388250700,-151.0,0.0002099,2]
[379727269,1755388250710,-151.0,0.0002099,2]
[379727270,1755388250719,-218.803816,0.0002099,2]
[379727271,1755388250729,-151.0,0.0002099,2]
[379727272,1755388250739,-159.729765,0.0002099,2]
[379727273,1755388250749,-159.729765,0.0002099,2]
[379727274,1755388250759,-151.0,0.0002099,2]
[379727275,1755388250769,-400.82151402,0.00021,2]
[379727276,1755388250779,-323.29795255,0.00021,2]
[379727277,1755388250788,-151.0,0.00021,3]
[379727278,1755388250798,-597.41212342,0.00021037,2]
[379727279,1755388250808,-153.0,0.00021101,2]
[379727280,1755388250818,-153.0,0.00021101,2]
[379727281,1755388250827,-153.0,0.00021101,2]
[379727282,1755388250837,-153.0,0.00021101,2]
[379727283,1755388250847,-153.0,0.00021101,2]
[379727284,1755388250857,-153.0,0.00021101,2]
[379727285,1755388250867,-153.0,0.00021101,2]
[379727286,1755388250876,-153.0,0.00021101,2]
[379727287,1755388250886,-153.0,0.00021101,2]
[379727288,1755388250896,-436.932185,0.00021107,2]
[379727289,1755388250905,-160.0,0.0002112,2]
[379727290,1755388250916,-480.0,0.0002112,2]
[379727291,1755388250927,-528.94,0.00021121,2]
[379727292,1755388250936,-757.46,0.00021121,2]
[379727293,1755388250946,-2158.19,0.00021121,2]
[379727294,1755388250959,-156.82471642,0.00021122,2]
[379727295,1755388250968,-668.59,0.00021122,2]
[379727296,1755388250978,-480.0,0.00021122,2]
[379727297,1755388250987,-610.44,0.00021122,2]
[379727298,1755388250997,-1488.49,0.00021122,2]
[379727299,1755388251007,-2153.6,0.00021122,2]
[379727300,1755388251017,-480.0,0.00021122,2]
[379727301,1755388251026,-480.0,0.00021122,2]
[379727302,1755388251036,-480.0,0.00021122,2]
[379727303,1755388251045,-1535.69,0.00021122,2]
[379727304,1755388251055,-480.0,0.00021122,2]
[379727305,1755388251065,-510.13,0.00021122,2]
[379727306,1755388251075,-480.0,0.00021122,2]
[379727307,1755388251084,-693.17,0.00021122,2]
[379727308,1755388251094,-480.0,0.00021122,2]
[379727309,1755388251104,-863.61,0.00021122,2]
[379727310,1755388251114,-659.97,0.00021122,2]
[379727311,1755388251124,-594.81,0.00021122,2]
[379727312,1755388251134,-480.0,0.00021123,2]
[379727313,1755388251144,-815.27,0.00021123,2]
[379727314,1755388251154,-1173.07,0.00021123,2]
[379727315,1755388251163,-706.92,0.00021123,2]
[379727316,1755388251173,-388.5842436,0.00021123,2]
[379727317,1755388251183,-480.0,0.00021123,2]
[379727318,1755388251192,-486.65,0.00021123,2]
[379727319,1755388251202,-480.0,0.00021123,2]
[379727320,1755388251212,-520.12,0.00021123,2]
[379727321,1755388251221,-480.0,0.00021123,2]
[379727322,1755388251231,-480.0,0.00021123,2]
[379727323,1755388251241,-729.19,0.00021123,2]
[379727324,1755388251250,-818.61,0.00021123,2]
[379727325,1755388251265,-480.0,0.00021123,2]
[379727326,1755388251275,-567.7,0.00021123,2]
[379727327,1755388251284,-4346.9,0.00021123,2]
[379727328,1755388251294,-546.09,0.00021123,2]
[379727329,1755388251303,-500.0,0.00021123,2]
[379727330,1755388251313,-480.0,0.00021123,2]
[379727331,1755388251323,-480.0,0.00021123,2]
[379727332,1755388251335,-649.68,0.00021123,2]
[379727333,1755388251344,-480.0,0.00021123,2]
[379727334,1755388251354,-480.0,0.00021123,2]
[379727335,1755388251365,-480.0,0.00021123,2]
[379727336,1755388251374,-764.22,0.00021123,2]
[379727337,1755388251384,-631.41,0.00021123,2]
[379727338,1755388251394,-151.0,0.00021144,2]
[379727339,1755388251404,-690.0,0.00021155,3]
[379727340,1755388251413,-168.0,0.00021173,2]
[379727341,1755388251423,-168.98892549,0.00021205,2]
[379727342,1755388251433,-167.23947228,0.00021205,2]
[379727343,1755388251443,-172.48783191,0.00021205,2]
[379727344,1755388251452,-841.44890128,0.0002121,2]
[379727345,1755388251463,-168.0,0.00021215,2]
[379727346,1755388251473,-863.1,0.00021222,2]
[379727347,1755388251482,-823.88,0.00021222,2]
[379727348,1755388251492,-480.0,0.00021222,2]
[379727349,1755388251501,-7413.48,0.00021222,2]
[379727350,1755388251511,-776.03,0.00021222,2]
[379727351,1755388251520,-1324.64,0.00021222,2]
[379727352,1755388251530,-525.28,0.00021222,2]
[379727353,1755388251539,-480.0,0.00021223,2]
[379727354,1755388251549,-733.34,0.00021223,2]
[379727355,1755388251558,-480.0,0.00021223,2]
[379727356,1755388251568,-480.0,0.00021223,2]
[379727357,1755388251581,-485.22,0.00021223,2]
[379727358,1755388251590,-480.0,0.00021223,2]
[379727359,1755388251600,-1094.65,0.00021223,2]
[379727360,1755388251609,-964.5,0.00021223,2]
[379727361,1755388251619,-480.0,0.00021223,2]
[379727362,1755388251628,-770.3,0.00021223,2]
[379727363,1755388251638,-480.0,0.00021223,2]
[379727364,1755388251647,-480.0,0.00021223,2]
[379727365,1755388251657,-480.0,0.00021223,2]
[379727366,1755388251668,-2306.01,0.00021223,2]
[379727367,1755388251677,-480.0,0.00021223,2]
[379727368,1755388251687,-546.58,0.00021223,2]
[379727369,1755388251696,-480.0,0.00021223,2]
[379727370,1755388251706,-535.47,0.00021223,2]
[379727371,1755388251715,-734.24,0.00021223,2]
[379727372,1755388251725,-532.38,0.00021223,2]
[379727373,1755388251735,-1185.5,0.00021223,2]
[379727374,1755388251745,-480.0,0.00021223,2]
[379727375,1755388251755,-151.0,0.00021223,2]
[379727376,1755388251765,-505.71,0.00021223,2]
[379727377,1755388251775,-738.63,0.00021223,2]
[379727378,1755388251785,-151.0,0.00021223,2]
[379727379,1755388251794,-480.0,0.00021223,2]
[379727380,1755388251804,-151.0,0.00021223,2]
[379727381,1755388251814,-159.729765,0.00021223,2]
[379727382,1755388251823,-159.729765,0.00021223,2]
[379727383,1755388251833,-576.69,0.00021223,2]
[379727384,1755388251842,-882.73,0.00021223,2]
[379727385,1755388251851,-480.0,0.00021223,2]
[379727386,1755388251861,-531.14,0.00021223,2]
[379727387,1755388251870,-480.0,0.00021223,2]
[379727388,1755388251880,-480.0,0.00021223,2]
[379727389,1755388251889,-582.53,0.00021223,2]
[379727390,1755388251899,-480.0,0.00021223,2]
[379727391,1755388251909,-480.0,0.00021223,2]
[379727392,1755388251918,-673.8,0.00021223,2]
[379727393,1755388251928,-480.0,0.00021223,2]
[379727394,1755388251937,-480.0,0.00021223,2]
[379727395,1755388251947,-480.0,0.00021223,2]
[379727396,1755388251957,-577.78,0.00021223,2]
[379727397,1755388251967,-480.0,0.00021223,2]
[379727398,1755388251977,-151.0,0.00021223,2]
[379727399,1755388251986,-544.83,0.00021223,2]
[379727400,1755388251997,-151.0,0.00021224,2]
[379727401,1755388252007,-177.714947,0.00021224,2]
[379727402,1755388252016,-480.0,0.00021224,2]
[379727403,1755388252026,-480.0,0.00021224,2]
[379727404,1755388252035,-212.248595,0.00021224,2]
[379727405,1755388252046,-480.0,0.00021224,2]
[379727406,1755388252056,-480.0,0.00021224,2]
[379727407,1755388252065,-7339.11,0.00021224,2]
[379727408,1755388252075,-333.51995032,0.00021224,2]
[379727409,1755388252085,-480.0,0.00021224,2]
[379727410,1755388252094,-480.0,0.00021224,2]
[379727411,1755388252104,-1406.99,0.00021224,2]
[379727412,1755388252114,-480.0,0.00021224,2]
[379727413,1755388252123,-906.94,0.00021224,2]
[379727414,1755388252133,-480.0,0.00021224,2]
[379727415,1755388252143,-480.0,0.00021224,2]
[379727416,1755388252152,-5604.82,0.00021224,2]
[379727417,1755388252161,-480.0,0.00021224,2]
[379727418,1755388252171,-847.62,0.00021224,2]
[379727419,1755388252180,-480.0,0.00021224,2]
[379727420,1755388252190,-853.71,0.00021224,2]
[379727421,1755388252200,-693.06,0.00021224,2]
[379727422,1755388252210,-480.0,0.00021224,2]
[379727423,1755388252219,-151.0,0.00021225,2]
[379727424,1755388252229,-285.075608,0.00021225,2]
[379727425,1755388252239,-360.494397,0.00021225,2]
[379727426,1755388252248,-360.494397,0.00021225,2]
[379727427,1755388252258,-151.0,0.00021225,2]
[379727428,1755388252268,-723.896909,0.00021225,2]
[379727429,1755388252278,-723.896909,0.00021225,2]
[379727430,1755388252288,-151.0,0.00021225,2]
[379727431,1755388252298,-151.0,0.00021225,2]
[379727432,1755388252308,-2091.04,0.00021225,2]
[379727433,1755388252318,-480.0,0.00021225,2]
[379727434,1755388252328,-1929.11,0.00021225,2]
[379727435,1755388252338,-480.0,0.00021225,2]
[379727436,1755388252348,-168.0,0.00021233,2]
[379727437,1755388252359,-368.741,0.00021238,2]
[379727438,1755388252368,-166.0,0.00021257,2]
[379727439,1755388252378,-326.0,0.00021257,2]
[379727440,1755388252388,-326.0,0.00021257,2]
[379727441,1755388252399,-326.0,0.00021257,2]
[379727442,1755388252540,-1500.0,0.00021268,2]
[379727443,1755388252551,-1500.0,0.00021268,2]
[379727444,1755388252560,-1500.0,0.00021268,2]
[379727445,1755388252570,-1500.0,0.00021268,2]
[379727446,1755388252583,-1500.0,0.00021268,2]
[379727447,1755388252593,-751.41654065,0.00021268,2]
[379727448,1755388252602,-1500.0,0.00021268,2]
[379727449,1755388252611,-1500.0,0.00021268,2]
[379727450,1755388252619,-1500.0,0.00021268,2]
[379727451,1755388252628,-168.0,0.00021276,2]
[379727452,1755388252637,-600.0,0.00021303,2]
[379727453,1755388252647,-690.0,0.00021361,3]
[379727454,1755388252656,-500.0,0.00021369,2]
[379727455,1755388252665,-168.0,0.00021372,2]
[379727456,1755388252674,-1068.14,0.00021388,3]
[379727457,1755388252683,-356.06,0.00021388,3]
[379727458,1755388252692,-480.0,0.00021394,2]
[379727459,1755388252701,-528.94,0.00021395,2]
[379727460,1755388252712,-757.46,0.00021395,2]
[379727461,1755388252721,-2158.19,0.00021395,2]
[379727462,1755388252730,-668.59,0.00021396,2]
[379727463,1755388252740,-480.0,0.00021396,2]
[379727464,1755388252749,-610.44,0.00021396,2]
[379727465,1755388252758,-1488.49,0.00021396,2]
[379727466,1755388252767,-2153.6,0.00021396,2]
[379727467,1755388252776,-480.0,0.00021396,2]
[379727468,1755388252785,-432.65469675,0.00021396,2]
[379727469,1755388252795,-480.0,0.00021396,2]
[379727470,1755388252804,-1535.69,0.00021396,2]
[379727471,1755388252813,-480.0,0.00021396,2]
[379727472,1755388252823,-510.13,0.00021396,2]
[379727473,1755388252832,-616.66665409,0.00021396,2]
[379727474,1755388252842,-693.17,0.00021396,2]
[379727475,1755388252852,-540.60243865,0.00021396,2]
[379727476,1755388252861,-863.61,0.00021396,2]
[379727477,1755388252870,-659.97,0.00021396,2]
[379727478,1755388252879,-594.81,0.00021396,2]
[379727479,1755388252889,-480.0,0.00021397,2]
[379727480,1755388252898,-815.27,0.00021397,2]
[379727481,1755388252907,-1173.07,0.00021397,2]
[379727482,1755388252916,-706.92,0.00021397,2]
[379727483,1755388252927,-480.0,0.00021397,2]
[379727484,1755388252935,-486.65,0.00021397,2]
[379727485,1755388252946,-515.27488113,0.00021397,2]
[379727486,1755388252955,-520.12,0.00021397,2]
[379727487,1755388252964,-480.0,0.00021397,2]
[379727488,1755388252973,-480.0,0.00021397,2]
[379727489,1755388252982,-729.19,0.00021397,2]
[379727490,1755388252992,-818.61,0.00021397,2]
[379727491,1755388253001,-480.0,0.00021397,2]
[379727492,1755388253010,-567.7,0.00021397,2]
[379727493,1755388253020,-4346.9,0.00021397,2]
[379727494,1755388253030,-546.09,0.00021397,2]
[379727495,1755388253040,-480.0,0.00021397,2]
[379727496,1755388253049,-151.0,0.00021397,2]
[379727497,1755388253058,-480.0,0.00021397,2]
[379727498,1755388253069,-649.68,0.00021397,2]
[379727499,1755388253078,-480.0,0.00021397,2]
[379727500,1755388253087,-480.0,0.00021397,2]
[379727501,1755388253097,-480.0,0.00021397,2]
[379727502,1755388253106,-764.22,0.00021397,2]
[379727503,1755388253115,-631.41,0.00021397,2]
[379727504,1755388253125,-216.554284,0.0002141,2]
[379727505,1755388253134,-278.979236,0.0002141,2]
[379727506,1755388253143,-168.98892549,0.00021479,2]
[379727507,1755388253152,-863.1,0.00021496,2]
[379727508,1755388253161,-823.88,0.00021496,2]
[379727509,1755388253170,-480.0,0.00021496,2]
[379727510,1755388253179,-7413.48,0.00021496,2]
[379727511,1755388253188,-776.03,0.00021496,2]
[379727512,1755388253198,-1324.64,0.00021496,2]
[379727513,1755388253207,-525.28,0.00021496,2]
[379727514,1755388253217,-480.0,0.00021497,2]
[379727515,1755388253226,-733.34,0.00021497,2]
[379727516,1755388253235,-480.0,0.00021497,2]
[379727517,1755388253245,-480.0,0.00021497,2]
[379727518,1755388253254,-485.22,0.00021497,2]
[379727519,1755388253263,-480.0,0.00021497,2]
[379727520,1755388253272,-1094.65,0.00021497,2]
[379727521,1755388253281,-964.5,0.00021497,2]
[379727522,1755388253291,-480.0,0.00021497,2]
[379727523,1755388253300,-770.3,0.00021497,2]
[379727524,1755388253310,-480.0,0.00021497,2]
[379727525,1755388253319,-480.0,0.00021497,2]
[379727526,1755388253328,-480.0,0.00021497,2]
[379727527,1755388253337,-2306.01,0.00021497,2]
[379727528,1755388253347,-480.0,0.00021497,2]
[379727529,1755388253356,-546.58,0.00021497,2]
[379727530,1755388253366,-480.0,0.00021497,2]
[379727531,1755388253375,-535.47,0.00021497,2]
[379727532,1755388253384,-734.24,0.00021497,2]
[379727533,1755388253393,-532.38,0.00021497,2]
[379727534,1755388253403,-1185.5,0.00021497,2]
[379727535,1755388253415,-480.0,0.00021497,2]
[379727536,1755388253425,-505.71,0.00021497,2]
[379727537,1755388253434,-738.63,0.00021497,2]
[379727538,1755388253443,-151.0,0.00021497,2]
[379727539,1755388253452,-480.0,0.00021497,2]
[379727540,1755388253462,-159.729765,0.00021497,2]
[379727541,1755388253472,-159.729765,0.00021497,2]
[379727542,1755388253481,-576.69,0.00021497,2]
[379727543,1755388253492,-882.73,0.00021497,2]
[379727544,1755388253501,-480.0,0.00021497,2]
[379727545,1755388253511,-531.14,0.00021497,2]
[379727546,1755388253520,-621.70692371,0.00021497,2]
[379727547,1755388253531,-480.0,0.00021497,2]
[379727548,1755388253540,-582.53,0.00021497,2]
[379727549,1755388253550,-610.20374075,0.00021497,2]
[379727550,1755388253560,-480.0,0.00021497,2]
[379727551,1755388253569,-673.8,0.00021497,2]
[379727552,1755388253581,-480.0,0.00021497,2]
[379727553,1755388253590,-480.0,0.00021497,2]
[379727554,1755388253600,-480.0,0.00021497,2]
[379727555,1755388253610,-577.78,0.00021497,2]
[379727556,1755388253622,-480.0,0.00021497,2]
[379727557,1755388253633,-544.83,0.00021497,2]
[379727558,1755388253642,-816.908349,0.00021498,2]
[379727559,1755388253653,-151.0,0.00021498,2]
[379727560,1755388253662,-360.494397,0.00021498,2]
[379727561,1755388253671,-360.494397,0.00021498,2]
[379727562,1755388253680,-151.0,0.00021498,2]
[379727563,1755388253689,-723.896909,0.00021498,2]
[379727564,1755388253699,-723.896909,0.00021498,2]
[379727565,1755388253708,-480.0,0.00021498,2]
[379727566,1755388253717,-340.243582,0.00021498,2]
[379727567,1755388253726,-340.243582,0.00021498,2]
[379727568,1755388253735,-480.0,0.00021498,2]
[379727569,1755388253744,-480.0,0.00021498,2]
[379727570,1755388253753,-480.0,0.00021498,2]
[379727571,1755388253763,-151.0,0.00021498,2]
[379727572,1755388253772,-7339.11,0.00021498,2]
[379727573,1755388253781,-151.0,0.00021498,2]
[379727574,1755388253791,-480.0,0.00021498,2]
[379727575,1755388253800,-480.0,0.00021498,2]
[379727576,1755388253809,-1406.99,0.00021498,2]
[379727577,1755388253818,-480.0,0.00021498,2]
[379727578,1755388253828,-906.94,0.00021498,2]
[379727579,1755388253837,-480.0,0.00021498,2]
[379727580,1755388253846,-480.0,0.00021498,2]
[379727581,1755388253855,-5604.82,0.00021498,2]
[379727582,1755388253865,-480.0,0.00021498,2]
[379727583,1755388253874,-847.62,0.00021498,2]
[379727584,1755388253884,-480.0,0.00021498,2]
[379727585,1755388253893,-853.71,0.00021498,2]
[379727586,1755388253902,-693.06,0.00021498,2]